[Event "Titled Tuesday Blitz April 11 Early 2023"]
[White "wqws"]
[Black "Grigoriants, Sergey"]
[BlackFideId "4130804"]
[WhiteElo "2613"]
[BlackElo "2502"]
[Result "0-1"]
[Round "02"]
[TimeControl "180+2"]
[Date "2023.04.11"]
[WhiteClock "0:00:07"]
[BlackClock "0:00:07"]

1. e4 {[%clk 0:03:00]}  c5 {[%clk 0:02:57]} 2. Nf3 {[%clk 0:03:01]}  Nc6 {[%clk 0:02:56]} 3. d4 {[%clk 0:03:01]}  cxd4 {[%clk 0:02:56]} 4. Nxd4 {[%clk 0:03:02]}  Nf6 {[%clk 0:02:54]} 5. Nc3 {[%clk 0:03:02]}  e5 {[%clk 0:02:53]} 6. Ndb5 {[%clk 0:03:02]}  d6 {[%clk 0:02:53]} 7. Bg5 {[%clk 0:03:02]}  a6 {[%clk 0:02:52]} 8. Na3 {[%clk 0:03:02]}  b5 {[%clk 0:02:52]} 9. Bxf6 {[%clk 0:03:00]}  gxf6 {[%clk 0:02:51]} 10. Nd5 {[%clk 0:03:01]}  f5 {[%clk 0:02:47]} 11. exf5 {[%clk 0:02:59]}  Bxf5 {[%clk 0:02:47]} 12. c3 {[%clk 0:02:59]}  Bg7 {[%clk 0:02:40]} 13. Nc2 {[%clk 0:02:54]}  O-O {[%clk 0:02:39]} 14. Nce3 {[%clk 0:02:53]}  Be6 {[%clk 0:02:39]} 15. g4 {[%clk 0:02:42]}  Ne7 {[%clk 0:02:28]} 16. Bg2 {[%clk 0:02:41]}  Rb8 {[%clk 0:02:27]} 17. O-O {[%clk 0:02:39]}  Nxd5 {[%clk 0:02:23]} 18. Bxd5 {[%clk 0:02:32]}  Bh6 {[%clk 0:02:18]} 19. Kh1 {[%clk 0:02:14]}  Kh8 {[%clk 0:02:11]} 20. Nf5 {[%clk 0:02:12]}  Bf4 {[%clk 0:02:00]} 21. Qf3 {[%clk 0:02:11]}  Qg5 {[%clk 0:01:23]} 22. Rg1 {[%clk 0:01:55]}  Bxf5 {[%clk 0:01:08]} 23. gxf5 {[%clk 0:01:55]}  Qxf5 {[%clk 0:01:09]} 24. Rad1 {[%clk 0:01:31]}  Rg8 {[%clk 0:01:04]} 25. Be4 {[%clk 0:01:28]}  Qf6 {[%clk 0:01:03]} 26. Qh5 {[%clk 0:01:15]}  h6 {[%clk 0:00:54]} 27. Qf5 {[%clk 0:01:04]}  Rxg1+ {[%clk 0:00:49]} 28. Rxg1 {[%clk 0:01:03]}  Qxf5 {[%clk 0:00:47]} 29. Bxf5 {[%clk 0:01:04]}  d5 {[%clk 0:00:48]} 30. Rd1 {[%clk 0:01:02]}  Rd8 {[%clk 0:00:48]} 31. Be4 {[%clk 0:00:57]}  d4 {[%clk 0:00:46]} 32. cxd4 {[%clk 0:00:57]}  exd4 {[%clk 0:00:46]} 33. Kg2 {[%clk 0:00:58]}  Kg7 {[%clk 0:00:40]} 34. h4 {[%clk 0:00:54]}  Kf6 {[%clk 0:00:39]} 35. Kf3 {[%clk 0:00:54]}  Be5 {[%clk 0:00:34]} 36. Rc1 {[%clk 0:00:53]}  d3 {[%clk 0:00:28]} 37. Rd1 {[%clk 0:00:44]}  d2 {[%clk 0:00:25]} 38. Ke2 {[%clk 0:00:43]}  Bf4 {[%clk 0:00:23]} 39. f3 {[%clk 0:00:38]}  a5 {[%clk 0:00:20]} 40. b3 {[%clk 0:00:33]}  Rc8 {[%clk 0:00:18]} 41. Rf1 {[%clk 0:00:25]}  Ke5 {[%clk 0:00:17]} 42. a4 {[%clk 0:00:18]}  b4 {[%clk 0:00:16]} 43. Bd3 {[%clk 0:00:16]}  Rc1 {[%clk 0:00:16]} 44. Rd1 {[%clk 0:00:14]}  Kd4 {[%clk 0:00:15]} 45. Bc4 {[%clk 0:00:14]}  f6 {[%clk 0:00:12]} 46. h5 {[%clk 0:00:14]}  Kc3 {[%clk 0:00:06]} 47. Bf7 {[%clk 0:00:13]}  f5 {[%clk 0:00:05]} 48. Be6 {[%clk 0:00:12]}  Kb2 {[%clk 0:00:04]} 49. Bd7 {[%clk 0:00:10]}  Kc3 {[%clk 0:00:01]} 50. Bxf5 {[%clk 0:00:10]}  Kd4 {[%clk 0:00:02]} 51. Be4 {[%clk 0:00:10]}  Kc3 {[%clk 0:00:03]} 52. Bd5 {[%clk 0:00:09]}  Kc2 {[%clk 0:00:03]} 53. Be4+ {[%clk 0:00:10]}  Kxb3 {[%clk 0:00:04]} 54. Bd3 {[%clk 0:00:09]}  Kc3 {[%clk 0:00:04]} 55. Bf5 {[%clk 0:00:09]}  b3 {[%clk 0:00:05]} 56. Bh7 {[%clk 0:00:10]}  b2 {[%clk 0:00:05]} 57. Bg6 {[%clk 0:00:10]}  Kb3 {[%clk 0:00:06]} 58. Bf7+ {[%clk 0:00:09]}  Kxa4 {[%clk 0:00:06]} 59. Ba2 {[%clk 0:00:08]}  Kb4 {[%clk 0:00:06]} 60. Bb1 {[%clk 0:00:08]}  a4 {[%clk 0:00:07]} 61. Bd3 {[%clk 0:00:07]}  a3 {[%clk 0:00:07]} 62. Bb1 {[%clk 0:00:08]}  Kc3 {[%clk 0:00:06]} 63. Ba2 {[%clk 0:00:08]}  Ra1 {[%clk 0:00:06]} 64. Bb1 {[%clk 0:00:07]}  Rxb1 {[%clk 0:00:06]} 65. Rxb1 {[%clk 0:00:07]}  a2 {[%clk 0:00:07]} 0-1


[Site "https://www.chess.com"]

[Event "Titled Tuesday Blitz April 11 Early 2023"]
[White "Terry, Renato"]
[Black "Kucuksari, Kaan"]
[WhiteFideId "3803457"]
[BlackFideId "6380166"]
[WhiteElo "2575"]
[BlackElo "2364"]
[Result "1-0"]
[Round "02"]
[TimeControl "180+2"]
[Date "2023.04.11"]
[WhiteClock "0:01:20"]
[BlackClock "0:00:14"]

1. e4 {[%clk 0:02:59]}  c5 {[%clk 0:02:56]} 2. Nf3 {[%clk 0:02:59]}  d6 {[%clk 0:02:54]} 3. Bb5+ {[%clk 0:02:58]}  Nd7 {[%clk 0:02:53]} 4. d4 {[%clk 0:02:58]}  cxd4 {[%clk 0:02:53]} 5. Qxd4 {[%clk 0:02:59]}  Nf6 {[%clk 0:02:51]} 6. Bg5 {[%clk 0:02:58]}  a6 {[%clk 0:02:49]} 7. Bxd7+ {[%clk 0:02:57]}  Bxd7 {[%clk 0:02:49]} 8. Nc3 {[%clk 0:02:57]}  Bc6 {[%clk 0:02:41]} 9. O-O-O {[%clk 0:02:57]}  Qa5 {[%clk 0:02:34]} 10. Rhe1 {[%clk 0:02:53]}  e5 {[%clk 0:02:23]} 11. Qd3 {[%clk 0:02:53]}  Be7 {[%clk 0:02:23]} 12. Bxf6 {[%clk 0:02:52]}  Bxf6 {[%clk 0:02:13]} 13. Kb1 {[%clk 0:02:31]}  O-O {[%clk 0:02:09]} 14. Nd5 {[%clk 0:02:28]}  Bxd5 {[%clk 0:01:39]} 15. Qxd5 {[%clk 0:02:28]}  Qxd5 {[%clk 0:01:39]} 16. Rxd5 {[%clk 0:02:29]}  Be7 {[%clk 0:01:39]} 17. a4 {[%clk 0:02:22]}  Rac8 {[%clk 0:01:38]} 18. b3 {[%clk 0:02:20]}  f6 {[%clk 0:01:21]} 19. Nd2 {[%clk 0:02:17]}  Kf7 {[%clk 0:01:20]} 20. Nc4 {[%clk 0:02:17]}  Ke6 {[%clk 0:01:20]} 21. Red1 {[%clk 0:02:11]}  Rc6 {[%clk 0:01:18]} 22. Na5 {[%clk 0:02:11]}  Rc7 {[%clk 0:01:18]} 23. Nc4 {[%clk 0:02:08]}  Rc6 {[%clk 0:01:09]} 24. f3 {[%clk 0:02:02]}  f5 {[%clk 0:01:05]} 25. exf5+ {[%clk 0:01:57]}  Rxf5 {[%clk 0:01:06]} 26. R5d3 {[%clk 0:01:54]}  Rf8 {[%clk 0:00:49]} 27. Ne3 {[%clk 0:01:54]}  Rfc8 {[%clk 0:00:44]} 28. c4 {[%clk 0:01:45]}  Rb8 {[%clk 0:00:36]} 29. Nd5 {[%clk 0:01:41]}  Bd8 {[%clk 0:00:30]} 30. Nb4 {[%clk 0:01:34]}  Rb6 {[%clk 0:00:30]} 31. Nd5 {[%clk 0:01:34]}  Rc6 {[%clk 0:00:30]} 32. Ka2 {[%clk 0:01:35]}  Ba5 {[%clk 0:00:23]} 33. b4 {[%clk 0:01:32]}  Bd8 {[%clk 0:00:23]} 34. Kb3 {[%clk 0:01:33]}  b5 {[%clk 0:00:23]} 35. cxb5 {[%clk 0:01:27]}  axb5 {[%clk 0:00:24]} 36. a5 {[%clk 0:01:27]}  Bg5 {[%clk 0:00:20]} 37. Nc3 {[%clk 0:01:27]}  Be7 {[%clk 0:00:18]} 38. Rd5 {[%clk 0:01:24]}  Rbc8 {[%clk 0:00:17]} 39. Nxb5 {[%clk 0:01:23]}  Rc2 {[%clk 0:00:17]} 40. R5d2 {[%clk 0:01:22]}  R2c6 {[%clk 0:00:14]} 41. Rd3 {[%clk 0:01:20]}  g5 {[%clk 0:00:14]} 42. Na7 {[%clk 0:01:20]} 1-0


[Site "https://www.chess.com"]

[Event "Titled Tuesday Blitz April 11 Early 2023"]
[White "Poliakova, Varvara"]
[Black "Makarian, Rudik"]
[WhiteFideId "13518313"]
[BlackFideId "44105681"]
[WhiteElo "2075"]
[BlackElo "2430"]
[Result "1-0"]
[Round "02"]
[TimeControl "180+2"]
[Date "2023.04.11"]
[WhiteClock "0:00:44"]
[BlackClock "0:00:03"]

1. e4 {[%clk 0:03:00]}  c5 {[%clk 0:03:00]} 2. Nf3 {[%clk 0:03:00]}  Nc6 {[%clk 0:03:00]} 3. d4 {[%clk 0:03:00]}  cxd4 {[%clk 0:03:01]} 4. Nxd4 {[%clk 0:03:01]}  e6 {[%clk 0:03:02]} 5. Nc3 {[%clk 0:03:01]}  a6 {[%clk 0:03:02]} 6. Be3 {[%clk 0:02:54]}  Nf6 {[%clk 0:03:02]} 7. f3 {[%clk 0:02:53]}  Bb4 {[%clk 0:02:41]} 8. Nxc6 {[%clk 0:02:30]}  bxc6 {[%clk 0:02:42]} 9. Qd2 {[%clk 0:02:22]}  d5 {[%clk 0:02:41]} 10. a3 {[%clk 0:02:18]}  Be7 {[%clk 0:02:39]} 11. e5 {[%clk 0:02:13]}  Nd7 {[%clk 0:02:38]} 12. f4 {[%clk 0:02:09]}  O-O {[%clk 0:02:37]} 13. Be2 {[%clk 0:02:07]}  c5 {[%clk 0:02:33]} 14. Bf2 {[%clk 0:02:05]}  Bb7 {[%clk 0:02:33]} 15. O-O {[%clk 0:02:06]}  Qc7 {[%clk 0:02:23]} 16. Bf3 {[%clk 0:02:04]}  g6 {[%clk 0:02:20]} 17. Ne2 {[%clk 0:02:04]}  d4 {[%clk 0:02:06]} 18. Qd3 {[%clk 0:01:59]}  Nb6 {[%clk 0:02:02]} 19. b3 {[%clk 0:01:51]}  a5 {[%clk 0:02:01]} 20. a4 {[%clk 0:01:50]}  Ba6 {[%clk 0:01:58]} 21. Qd2 {[%clk 0:01:49]}  Bb7 {[%clk 0:01:51]} 22. c3 {[%clk 0:01:45]}  Bxf3 {[%clk 0:01:49]} 23. gxf3 {[%clk 0:01:46]}  Rfd8 {[%clk 0:01:20]} 24. cxd4 {[%clk 0:01:43]}  cxd4 {[%clk 0:01:20]} 25. Rac1 {[%clk 0:01:40]}  Qb7 {[%clk 0:01:18]} 26. Kg2 {[%clk 0:01:41]}  d3 {[%clk 0:01:15]} 27. Nd4 {[%clk 0:01:39]}  Nd5 {[%clk 0:01:11]} 28. Kg3 {[%clk 0:01:31]}  Nb4 {[%clk 0:00:58]} 29. Rc4 {[%clk 0:01:30]}  Rac8 {[%clk 0:00:57]} 30. Rfc1 {[%clk 0:01:30]}  Rxc4 {[%clk 0:00:57]} 31. bxc4 {[%clk 0:01:28]}  Bc5 {[%clk 0:00:55]} 32. Nb5 {[%clk 0:01:25]}  Qb6 {[%clk 0:00:40]} 33. Bxc5 {[%clk 0:01:20]}  Qxc5 {[%clk 0:00:41]} 34. Nd6 {[%clk 0:01:19]}  Rb8 {[%clk 0:00:26]} 35. Rc3 {[%clk 0:01:14]}  Qc6 {[%clk 0:00:23]} 36. h4 {[%clk 0:01:08]}  h5 {[%clk 0:00:20]} 37. Ne4 {[%clk 0:01:05]}  Kg7 {[%clk 0:00:19]} 38. Nd6 {[%clk 0:01:04]}  Qxa4 {[%clk 0:00:18]} 39. Rc1 {[%clk 0:00:58]}  Qc6 {[%clk 0:00:17]} 40. Qe3 {[%clk 0:00:55]}  Ra8 {[%clk 0:00:14]} 41. Qd4 {[%clk 0:00:54]}  a4 {[%clk 0:00:10]} 42. f5 {[%clk 0:00:50]}  a3 {[%clk 0:00:06]} 43. f6+ {[%clk 0:00:48]}  Kh7 {[%clk 0:00:05]} 44. Nxf7 {[%clk 0:00:47]}  a2 {[%clk 0:00:06]} 45. Qf4 {[%clk 0:00:43]}  Kg8 {[%clk 0:00:04]} 46. Qh6 {[%clk 0:00:44]}  Kxf7 {[%clk 0:00:03]} 47. Qg7+ {[%clk 0:00:44]} 1-0


[Site "https://www.chess.com"]

[Event "Titled Tuesday Blitz April 11 Early 2023"]
[White "Horobetz, Graham"]
[Black "Corrales Jimenez, Fidel"]
[WhiteFideId "2047322"]
[BlackFideId "3506690"]
[WhiteElo "2607"]
[BlackElo "2541"]
[Result "0-1"]
[Round "02"]
[TimeControl "180+2"]
[Date "2023.04.11"]
[WhiteClock "0:00:01"]
[BlackClock "0:01:54"]

1. e4 {[%clk 0:03:00]}  e6 {[%clk 0:02:58]} 2. d4 {[%clk 0:03:00]}  d5 {[%clk 0:02:58]} 3. Nd2 {[%clk 0:03:01]}  dxe4 {[%clk 0:02:57]} 4. Nxe4 {[%clk 0:03:02]}  Nd7 {[%clk 0:02:58]} 5. Bd3 {[%clk 0:02:59]}  Ndf6 {[%clk 0:02:56]} 6. Nxf6+ {[%clk 0:02:58]}  Nxf6 {[%clk 0:02:57]} 7. Nf3 {[%clk 0:02:54]}  Be7 {[%clk 0:02:56]} 8. O-O {[%clk 0:02:54]}  O-O {[%clk 0:02:57]} 9. Qe2 {[%clk 0:02:54]}  b6 {[%clk 0:02:57]} 10. b3 {[%clk 0:02:48]}  Bb7 {[%clk 0:02:57]} 11. Bb2 {[%clk 0:02:49]}  Qd5 {[%clk 0:02:56]} 12. c4 {[%clk 0:02:42]}  Qh5 {[%clk 0:02:55]} 13. Ne5 {[%clk 0:02:43]}  Qxe2 {[%clk 0:02:54]} 14. Bxe2 {[%clk 0:02:44]}  Rfd8 {[%clk 0:02:54]} 15. Rad1 {[%clk 0:02:43]}  a5 {[%clk 0:02:51]} 16. a3 {[%clk 0:02:34]}  Bd6 {[%clk 0:02:49]} 17. f4 {[%clk 0:02:19]}  Be4 {[%clk 0:02:48]} 18. Bd3 {[%clk 0:02:12]}  Bxd3 {[%clk 0:02:48]} 19. Rxd3 {[%clk 0:02:12]}  Ne4 {[%clk 0:02:33]} 20. Re1 {[%clk 0:02:04]}  f5 {[%clk 0:02:33]} 21. g3 {[%clk 0:01:53]}  Bxe5 {[%clk 0:02:32]} 22. fxe5 {[%clk 0:01:52]}  a4 {[%clk 0:02:32]} 23. b4 {[%clk 0:01:44]}  c5 {[%clk 0:02:29]} 24. d5 {[%clk 0:01:28]}  exd5 {[%clk 0:02:28]} 25. cxd5 {[%clk 0:01:29]}  c4 {[%clk 0:02:24]} 26. Rdd1 {[%clk 0:01:18]}  c3 {[%clk 0:02:24]} 27. Rxe4 {[%clk 0:01:10]}  fxe4 {[%clk 0:02:22]} 28. Bxc3 {[%clk 0:01:11]}  Rac8 {[%clk 0:02:23]} 29. Be1 {[%clk 0:01:09]}  Re8 {[%clk 0:02:17]} 30. e6 {[%clk 0:01:00]}  Rcd8 {[%clk 0:02:17]} 31. b5 {[%clk 0:00:23]}  Rxe6 {[%clk 0:02:13]} 32. Bb4 {[%clk 0:00:24]}  Re5 {[%clk 0:02:09]} 33. d6 {[%clk 0:00:17]}  Rxb5 {[%clk 0:02:09]} 34. Kf2 {[%clk 0:00:16]}  Kf7 {[%clk 0:02:10]} 35. Ke3 {[%clk 0:00:16]}  Re5 {[%clk 0:02:06]} 36. Rc1 {[%clk 0:00:16]}  Ke6 {[%clk 0:02:06]} 37. Rc7 {[%clk 0:00:16]}  Rd7 {[%clk 0:02:06]} 38. Rc8 {[%clk 0:00:16]}  Kd5 {[%clk 0:02:04]} 39. Rb8 {[%clk 0:00:13]}  Rf5 {[%clk 0:02:04]} 40. Rxb6 {[%clk 0:00:12]}  Rf3+ {[%clk 0:02:04]} 41. Ke2 {[%clk 0:00:13]}  Rb3 {[%clk 0:02:04]} 42. Rb5+ {[%clk 0:00:12]}  Kd4 {[%clk 0:02:04]} 43. Bc5+ {[%clk 0:00:11]}  Kc4 {[%clk 0:02:04]} 44. Ra5 {[%clk 0:00:09]}  Rb5 {[%clk 0:01:57]} 45. Rxb5 {[%clk 0:00:09]}  Kxb5 {[%clk 0:01:58]} 46. Bb4 {[%clk 0:00:09]}  Kc4 {[%clk 0:01:58]} 47. Ke3 {[%clk 0:00:10]}  Kd5 {[%clk 0:01:58]} 48. h4 {[%clk 0:00:09]}  h5 {[%clk 0:01:58]} 49. Kf4 {[%clk 0:00:09]}  Kd4 {[%clk 0:01:58]} 50. Kf5 {[%clk 0:00:06]}  Kd5 {[%clk 0:01:58]} 51. Kf4 {[%clk 0:00:06]}  g6 {[%clk 0:01:57]} 52. Kg5 {[%clk 0:00:06]}  e3 {[%clk 0:01:58]} 53. Kf4 {[%clk 0:00:06]}  e2 {[%clk 0:01:58]} 54. Kf3 {[%clk 0:00:06]}  Rxd6 {[%clk 0:01:58]} 55. Kxe2 {[%clk 0:00:06]}  Re6+ {[%clk 0:01:59]} 56. Kf3 {[%clk 0:00:06]}  Re4 {[%clk 0:01:59]} 57. Bf8 {[%clk 0:00:04]}  Rc4 {[%clk 0:01:59]} 58. Ke3 {[%clk 0:00:03]}  Ke5 {[%clk 0:01:58]} 59. Bg7+ {[%clk 0:00:02]}  Kf5 {[%clk 0:01:57]} 60. Bf8 {[%clk 0:00:02]}  Rc3+ {[%clk 0:01:56]} 61. Kf2 {[%clk 0:00:03]}  Ke4 {[%clk 0:01:56]} 62. Bd6 {[%clk 0:00:03]}  Rc2+ {[%clk 0:01:56]} 63. Ke1 {[%clk 0:00:02]}  Kf3 {[%clk 0:01:57]} 64. Kd1 {[%clk 0:00:02]}  Rc6 {[%clk 0:01:56]} 65. Be5 {[%clk 0:00:01]}  Rc5 {[%clk 0:01:54]} 0-1


[Site "https://www.chess.com"]

[Event "Titled Tuesday Blitz April 11 Early 2023"]
[White "Eljanov, Pavel"]
[Black "Gold_Ocean"]
[WhiteFideId "14102951"]
[WhiteElo "2598"]
[BlackElo "2605"]
[Result "1-0"]
[Round "02"]
[TimeControl "180+2"]
[Date "2023.04.11"]
[WhiteClock "0:01:48"]
[BlackClock "0:00:59"]

1. c4 {[%clk 0:03:00]}  Nf6 {[%clk 0:02:57]} 2. Nc3 {[%clk 0:03:00]}  g6 {[%clk 0:02:58]} 3. g3 {[%clk 0:02:59]}  Bg7 {[%clk 0:02:55]} 4. Bg2 {[%clk 0:02:59]}  O-O {[%clk 0:02:56]} 5. d4 {[%clk 0:02:58]}  d6 {[%clk 0:02:55]} 6. Nf3 {[%clk 0:02:58]}  c5 {[%clk 0:02:36]} 7. d5 {[%clk 0:02:57]}  e6 {[%clk 0:02:33]} 8. O-O {[%clk 0:02:58]}  exd5 {[%clk 0:02:33]} 9. cxd5 {[%clk 0:02:59]}  Re8 {[%clk 0:02:33]} 10. Re1 {[%clk 0:02:50]}  Bf5 {[%clk 0:02:20]} 11. Nd2 {[%clk 0:02:38]}  Na6 {[%clk 0:02:13]} 12. e4 {[%clk 0:02:30]}  Bd7 {[%clk 0:02:14]} 13. Nc4 {[%clk 0:02:27]}  Qb8 {[%clk 0:01:29]} 14. Bf4 {[%clk 0:02:26]}  Bf8 {[%clk 0:01:29]} 15. e5 {[%clk 0:02:16]}  Nh5 {[%clk 0:01:28]} 16. e6 {[%clk 0:02:15]}  Nxf4 {[%clk 0:01:20]} 17. gxf4 {[%clk 0:02:16]}  fxe6 {[%clk 0:01:16]} 18. dxe6 {[%clk 0:02:17]}  Bc6 {[%clk 0:01:16]} 19. Nd5 {[%clk 0:02:11]}  Bg7 {[%clk 0:01:15]} 20. Nxd6 {[%clk 0:01:48]}  Rd8 {[%clk 0:01:02]} 21. Ne7+ {[%clk 0:01:48]}  Kh8 {[%clk 0:00:59]} 22. Nf7# {[%clk 0:01:48]} 1-0


[Site "https://www.chess.com"]

[Event "Titled Tuesday Blitz April 11 Early 2023"]
[White "Drygalov, Andrey"]
[Black "Ozates, Tuna"]
[WhiteFideId "24171735"]
[BlackFideId "6354521"]
[WhiteElo "2466"]
[BlackElo "2151"]
[Result "1-0"]
[Round "02"]
[TimeControl "180+2"]
[Date "2023.04.11"]
[WhiteClock "0:01:08"]
[BlackClock "0:00:15"]

1. e4 {[%clk 0:03:00]}  c5 {[%clk 0:03:00]} 2. Nf3 {[%clk 0:03:00]}  Nc6 {[%clk 0:03:01]} 3. Bb5 {[%clk 0:03:00]}  g6 {[%clk 0:03:00]} 4. Bxc6 {[%clk 0:03:00]}  bxc6 {[%clk 0:03:00]} 5. O-O {[%clk 0:03:00]}  Bg7 {[%clk 0:03:01]} 6. Re1 {[%clk 0:03:01]}  Nh6 {[%clk 0:03:01]} 7. c3 {[%clk 0:03:00]}  O-O {[%clk 0:03:01]} 8. h3 {[%clk 0:03:00]}  f5 {[%clk 0:03:00]} 9. e5 {[%clk 0:03:00]}  Nf7 {[%clk 0:03:01]} 10. d3 {[%clk 0:02:59]}  d6 {[%clk 0:02:54]} 11. Bf4 {[%clk 0:02:59]}  Ba6 {[%clk 0:02:47]} 12. Na3 {[%clk 0:02:59]}  Rb8 {[%clk 0:02:36]} 13. Qd2 {[%clk 0:02:36]}  dxe5 {[%clk 0:02:31]} 14. Nxe5 {[%clk 0:02:36]}  Nxe5 {[%clk 0:02:31]} 15. Bxe5 {[%clk 0:02:37]}  Bxe5 {[%clk 0:02:32]} 16. Rxe5 {[%clk 0:02:37]}  Bxd3 {[%clk 0:02:33]} 17. Rxc5 {[%clk 0:02:30]}  Qd6 {[%clk 0:01:40]} 18. b4 {[%clk 0:02:25]}  Rfd8 {[%clk 0:01:34]} 19. Rd1 {[%clk 0:02:06]}  Be4 {[%clk 0:01:33]} 20. Qxd6 {[%clk 0:02:05]}  exd6 {[%clk 0:01:34]} 21. Ra5 {[%clk 0:02:06]}  Rb7 {[%clk 0:01:29]} 22. Ra6 {[%clk 0:01:37]}  Re7 {[%clk 0:01:19]} 23. f3 {[%clk 0:01:28]}  Bd5 {[%clk 0:01:16]} 24. c4 {[%clk 0:01:28]}  Bf7 {[%clk 0:01:08]} 25. Rxc6 {[%clk 0:01:28]}  Re2 {[%clk 0:01:05]} 26. Nb5 {[%clk 0:01:18]}  Rxa2 {[%clk 0:00:54]} 27. Nxd6 {[%clk 0:01:16]}  Be6 {[%clk 0:00:41]} 28. c5 {[%clk 0:01:12]}  a5 {[%clk 0:00:40]} 29. bxa5 {[%clk 0:01:09]}  Rxa5 {[%clk 0:00:39]} 30. Re1 {[%clk 0:01:10]}  Bd5 {[%clk 0:00:20]} 31. Rc7 {[%clk 0:01:09]}  Rxc5 {[%clk 0:00:15]} 32. Rxc5 {[%clk 0:01:08]} 1-0


[Site "https://www.chess.com"]

[Event "Titled Tuesday Blitz April 11 Early 2023"]
[White "Ibarra Jerez, Jose Carlos"]
[Black "Jain Kashish Manoj"]
[WhiteFideId "2226332"]
[BlackFideId "35081098"]
[WhiteElo "2638"]
[BlackElo "2191"]
[Result "1-0"]
[Round "02"]
[TimeControl "180+2"]
[Date "2023.04.11"]
[WhiteClock "0:02:09"]
[BlackClock "0:00:02"]

1. e4 {[%clk 0:02:59]}  c5 {[%clk 0:02:52]} 2. Ne2 {[%clk 0:02:59]}  Nc6 {[%clk 0:02:47]} 3. Nbc3 {[%clk 0:02:56]}  d6 {[%clk 0:02:44]} 4. d4 {[%clk 0:02:57]}  cxd4 {[%clk 0:02:44]} 5. Nxd4 {[%clk 0:02:58]}  Nf6 {[%clk 0:02:45]} 6. Nd5 {[%clk 0:02:58]}  Nxd5 {[%clk 0:02:43]} 7. exd5 {[%clk 0:02:58]}  Qa5+ {[%clk 0:02:44]} 8. Bd2 {[%clk 0:02:58]}  Qxd5 {[%clk 0:02:44]} 9. Nb5 {[%clk 0:02:59]}  Qe6+ {[%clk 0:02:44]} 10. Be2 {[%clk 0:02:59]}  Qd7 {[%clk 0:02:45]} 11. c4 {[%clk 0:02:59]}  e6 {[%clk 0:02:12]} 12. Bf4 {[%clk 0:02:59]}  e5 {[%clk 0:02:07]} 13. Be3 {[%clk 0:02:59]}  Be7 {[%clk 0:02:05]} 14. Qd2 {[%clk 0:02:58]}  O-O {[%clk 0:02:03]} 15. Rd1 {[%clk 0:02:58]}  Rd8 {[%clk 0:01:54]} 16. O-O {[%clk 0:02:57]}  b6 {[%clk 0:01:37]} 17. f4 {[%clk 0:02:51]}  Bb7 {[%clk 0:01:32]} 18. Bf3 {[%clk 0:02:51]}  Rac8 {[%clk 0:01:14]} 19. b3 {[%clk 0:02:41]}  Bf8 {[%clk 0:01:02]} 20. Bd5 {[%clk 0:02:36]}  exf4 {[%clk 0:00:31]} 21. Bxf4 {[%clk 0:02:32]}  Ne5 {[%clk 0:00:09]} 22. Bxe5 {[%clk 0:02:24]}  dxe5 {[%clk 0:00:10]} 23. Rxf7 {[%clk 0:02:13]}  Bxd5 {[%clk 0:00:02]} 24. Rxd7 {[%clk 0:02:09]} 1-0


[Site "https://www.chess.com"]

[Event "Titled Tuesday Blitz April 11 Early 2023"]
[White "Kravtsiv, Martyn"]
[Black "Ibadov, Dashgyn"]
[WhiteFideId "14113147"]
[BlackFideId "24107514"]
[WhiteElo "2695"]
[BlackElo "2208"]
[Result "1-0"]
[Round "02"]
[TimeControl "180+2"]
[Date "2023.04.11"]
[WhiteClock "0:01:08"]
[BlackClock "0:00:33"]

1. e4 {[%clk 0:03:00]}  e5 {[%clk 0:02:56]} 2. Nf3 {[%clk 0:03:00]}  Nc6 {[%clk 0:02:57]} 3. Nc3 {[%clk 0:03:00]}  Nf6 {[%clk 0:02:57]} 4. a4 {[%clk 0:02:59]}  d5 {[%clk 0:02:53]} 5. exd5 {[%clk 0:02:59]}  Nxd5 {[%clk 0:02:54]} 6. Bb5 {[%clk 0:02:59]}  Nxc3 {[%clk 0:02:53]} 7. bxc3 {[%clk 0:02:59]}  Bd6 {[%clk 0:02:52]} 8. O-O {[%clk 0:02:58]}  O-O {[%clk 0:02:52]} 9. d4 {[%clk 0:02:58]}  exd4 {[%clk 0:02:52]} 10. cxd4 {[%clk 0:02:59]}  Bg4 {[%clk 0:02:47]} 11. c3 {[%clk 0:02:57]}  Qf6 {[%clk 0:02:46]} 12. a5 {[%clk 0:02:56]}  a6 {[%clk 0:02:40]} 13. Bd3 {[%clk 0:02:55]}  h6 {[%clk 0:02:24]} 14. h3 {[%clk 0:02:45]}  Bh5 {[%clk 0:02:15]} 15. Be4 {[%clk 0:02:39]}  Rae8 {[%clk 0:02:12]} 16. Qd3 {[%clk 0:02:36]}  Nd8 {[%clk 0:01:58]} 17. Bd2 {[%clk 0:02:21]}  Ne6 {[%clk 0:01:54]} 18. Rfe1 {[%clk 0:02:15]}  c6 {[%clk 0:01:44]} 19. Rab1 {[%clk 0:02:09]}  Nf4 {[%clk 0:01:38]} 20. Bxf4 {[%clk 0:02:04]}  Qxf4 {[%clk 0:01:39]} 21. g3 {[%clk 0:02:03]}  Qf6 {[%clk 0:01:37]} 22. Nd2 {[%clk 0:01:59]}  Re7 {[%clk 0:01:32]} 23. Re3 {[%clk 0:01:30]}  Rfe8 {[%clk 0:01:08]} 24. Rbe1 {[%clk 0:01:23]}  Qg5 {[%clk 0:01:02]} 25. Bh7+ {[%clk 0:01:20]}  Kh8 {[%clk 0:00:59]} 26. Ne4 {[%clk 0:01:20]}  Qd5 {[%clk 0:00:49]} 27. c4 {[%clk 0:01:20]}  Qxa5 {[%clk 0:00:44]} 28. Nxd6 {[%clk 0:01:19]}  Qxe1+ {[%clk 0:00:41]} 29. Rxe1 {[%clk 0:01:18]}  Rxe1+ {[%clk 0:00:42]} 30. Kg2 {[%clk 0:01:14]}  R8e6 {[%clk 0:00:36]} 31. c5 {[%clk 0:01:10]}  Be2 {[%clk 0:00:33]} 32. Nxf7# {[%clk 0:01:08]} 1-0


[Site "https://www.chess.com"]